fUSD/lending_fUSD_20250211
["ID","MTS","AMOUNT","RATE_DAILY","PERIOD"]
[352736915,1739283079996,-2042.7,0.00011637,2]
[352736916,1739283080006,-2608.79,0.00011637,2]
[352736917,1739283080015,-500.0,0.00011642,2]
[352736918,1739283080025,-500.0,0.00011642,2]
[352736919,1739283080034,-1366.0,0.00011643,2]
[352736920,1739283080043,-151.0,0.00011643,2]
[352736921,1739283080055,-634.3,0.00011643,2]
[352736922,1739283080064,-560.46,0.00011643,2]
[352736923,1739283080073,-500.0,0.00011643,2]
[352736924,1739283080083,-500.0,0.00011643,2]
[352736925,1739283080092,-500.0,0.00011643,2]
[352736926,1739283080102,-500.0,0.00011643,2]
[352736927,1739283080111,-500.0,0.00011643,2]
[352736928,1739283080120,-500.0,0.00011643,2]
[352736929,1739283080130,-500.0,0.00011643,2]
[352736930,1739283080140,-500.0,0.00011643,2]
[352736931,1739283080149,-545.31,0.00011643,2]
[352736932,1739283080159,-500.0,0.00011643,2]
[352736933,1739283080168,-500.0,0.00011643,2]
[352736934,1739283080177,-500.0,0.00011643,2]
[352736935,1739283080187,-500.0,0.00011643,2]
[352736936,1739283080196,-500.0,0.00011643,2]
[352736937,1739283080205,-500.0,0.00011643,2]
[352736938,1739283080214,-500.0,0.00011643,2]
[352736939,1739283080223,-500.0,0.00011643,2]
[352736940,1739283080233,-623.89,0.00011643,2]
[352736941,1739283080242,-2289.514115,0.00011643,2]
[352736942,1739283080252,-500.0,0.00011643,2]
[352736943,1739283080261,-500.0,0.00011643,2]
[352736944,1739283080271,-912.071354,0.00011643,2]
[352736945,1739283080280,-562.39,0.00011643,2]
[352736946,1739283080289,-500.0,0.00011643,2]
[352736947,1739283080299,-500.0,0.00011643,2]
[352736948,1739283080311,-1335.42,0.00011643,2]
[352736949,1739283080321,-500.0,0.00011643,2]
[352736950,1739283080330,-500.0,0.00011643,2]
[352736951,1739283080339,-500.0,0.00011643,2]
[352736952,1739283080348,-500.0,0.00011643,2]
[352736953,1739283080357,-500.0,0.00011643,2]
[352736954,1739283080367,-500.0,0.00011643,2]
[352736955,1739283080376,-1026.73,0.00011643,2]
[352736956,1739283080385,-500.0,0.00011643,2]
[352736957,1739283080396,-500.0,0.00011643,2]
[352736958,1739283080405,-1291.73,0.00011643,2]
[352736959,1739283080414,-500.0,0.00011643,2]
[352736960,1739283080423,-500.0,0.00011643,2]
[352736961,1739283080432,-500.0,0.00011643,2]
[352736962,1739283080441,-500.0,0.00011643,2]
[352736963,1739283080450,-544.69020935,0.00011643,2]
[352736964,1739283080459,-1006.21,0.00011643,2]
[352736965,1739283080468,-500.0,0.00011643,2]
[352736966,1739283080478,-654.08,0.00011643,2]
[352736967,1739283080487,-500.0,0.00011643,2]
[352736968,1739283080496,-332.72646896,0.00011643,2]
[352736969,1739283080505,-500.0,0.00011643,2]
[352736970,1739283080514,-500.0,0.00011643,2]
[352736971,1739283080523,-500.0,0.00011643,2]
[352736972,1739283080532,-500.0,0.00011643,2]
[352736973,1739283080542,-648.91,0.00011643,2]
[352736974,1739283080553,-500.0,0.00011643,2]
[352736975,1739283080563,-500.0,0.00011643,2]
[352736976,1739283080572,-829.91,0.00011643,2]
[352736977,1739283080581,-500.0,0.00011643,2]
[352736978,1739283080591,-500.0,0.00011643,2]
[352736979,1739283080600,-1283.05,0.00011643,2]
[352736980,1739283080611,-285.47028787,0.00011643,2]
[352736981,1739283080621,-500.0,0.00011643,2]
[352736982,1739283080632,-577.83471371,0.00011643,2]
[352736983,1739283080641,-500.0,0.00011643,2]
[352736984,1739283080651,-500.0,0.00011643,2]
[352736985,1739283080660,-518.99711628,0.00011643,2]
[352736986,1739283080669,-627.22,0.00011643,2]
[352736987,1739283080678,-784.62,0.00011643,2]
[352736988,1739283080687,-571.86931104,0.00011643,2]
[352736989,1739283080696,-500.0,0.00011643,2]
[352736990,1739283080705,-500.0,0.00011643,2]
[352736991,1739283080715,-500.0,0.00011643,2]
[352736992,1739283080723,-500.0,0.00011643,2]
[352736993,1739283080733,-500.0,0.00011643,2]
[352736994,1739283080743,-500.0,0.00011643,2]
[352736995,1739283080752,-500.0,0.00011643,2]
[352736996,1739283080761,-500.0,0.00011643,2]
[352736997,1739283080771,-1049.93,0.00011643,2]
[352736998,1739283080780,-500.0,0.00011643,2]
[352736999,1739283080789,-656.24,0.00011643,2]
[352737000,1739283080799,-500.0,0.00011643,2]
[352737001,1739283080811,-500.0,0.00011643,2]
[352737002,1739283080820,-717.49,0.00011643,2]
[352737003,1739283080829,-750.73,0.00011643,2]
[352737004,1739283080838,-899.58,0.00011643,2]
[352737005,1739283080847,-500.0,0.00011643,2]
[352737006,1739283080857,-951.35,0.00011643,2]
[352737007,1739283080866,-500.0,0.00011643,2]
[352737008,1739283080876,-1059.29,0.00011643,2]
[352737009,1739283080885,-500.0,0.00011643,2]
[352737010,1739283080894,-1079.43,0.00011643,2]
[352737011,1739283080904,-771.17,0.00011643,2]
[352737012,1739283080913,-500.0,0.00011643,2]
[352737013,1739283080922,-500.0,0.00011643,2]
[352737014,1739283080932,-339.71119503,0.00011643,2]
[352737015,1739283080941,-500.0,0.00011643,2]
[352737016,1739283080951,-621.59,0.00011643,2]
[352737017,1739283080960,-500.0,0.00011643,2]
[352737018,1739283080969,-500.0,0.00011643,2]
[352737019,1739283080982,-500.0,0.00011643,2]
[352737020,1739283080993,-500.0,0.00011643,2]
[352737021,1739283081003,-500.0,0.00011643,2]
[352737022,1739283081012,-500.0,0.00011643,2]
[352737023,1739283081021,-500.0,0.00011643,2]
[352737024,1739283081031,-500.0,0.00011643,2]
[352737025,1739283081041,-772.38,0.00011643,2]
[352737026,1739283081052,-637.38,0.00011643,2]
[352737027,1739283081187,-500.0,0.00011643,2]
[352737028,1739283081196,-564.18,0.00011643,2]
[352737029,1739283081206,-500.0,0.00011643,2]
[352737030,1739283081214,-500.0,0.00011643,2]
[352737031,1739283081224,-562.5,0.00011643,2]
[352737032,1739283081233,-726.26,0.00011643,2]
[352737033,1739283081242,-500.0,0.00011643,2]
[352737034,1739283081251,-500.0,0.00011643,2]
[352737035,1739283081260,-500.0,0.00011643,2]
[352737036,1739283081269,-500.0,0.00011643,2]
[352737037,1739283081279,-500.0,0.00011643,2]
[352737038,1739283081288,-500.0,0.00011643,2]
[352737039,1739283081298,-500.0,0.00011643,2]
[352737040,1739283081308,-657.71,0.00011643,2]
[352737041,1739283081318,-545.49,0.00011643,2]
[352737042,1739283081327,-947.55,0.00011643,2]
[352737043,1739283081336,-500.0,0.00011643,2]
[352737044,1739283081345,-500.0,0.00011643,2]
[352737045,1739283081354,-500.0,0.00011643,2]
[352737046,1739283081364,-500.0,0.00011643,2]
[352737047,1739283081373,-166.26,0.00011643,2]
[352737048,1739283081383,-500.0,0.00011643,2]
[352737049,1739283081392,-500.0,0.00011643,2]
[352737050,1739283081401,-500.0,0.00011643,2]
[352737051,1739283081410,-791.02,0.00011643,2]
[352737052,1739283081420,-594.78,0.00011643,2]
[352737053,1739283081429,-899.13,0.00011643,2]
[352737054,1739283081438,-500.0,0.00011643,2]
[352737055,1739283081447,-504.33240458,0.00011643,2]
[352737056,1739283081456,-723.56,0.00011643,2]
[352737057,1739283081466,-623.3,0.00011643,2]
[352737058,1739283081475,-500.0,0.00011643,2]
[352737059,1739283081484,-551.08,0.00011643,2]
[352737060,1739283081494,-602.04,0.00011643,2]
[352737061,1739283081503,-634.43,0.00011643,2]
[352737062,1739283081513,-500.0,0.00011643,2]
[352737063,1739283081522,-689.47,0.00011643,2]
[352737064,1739283081531,-500.0,0.00011643,2]
[352737065,1739283081541,-500.0,0.00011643,2]
[352737066,1739283081552,-500.0,0.00011643,2]
[352737067,1739283081562,-500.0,0.00011643,2]
[352737068,1739283081571,-500.0,0.00011643,2]
[352737069,1739283081581,-999.07,0.00011643,2]
[352737070,1739283081590,-500.0,0.00011643,2]
[352737071,1739283081599,-961.83,0.00011643,2]
[352737072,1739283081609,-500.0,0.00011643,2]
[352737073,1739283081618,-932.98,0.00011643,2]
[352737074,1739283081630,-500.0,0.00011643,2]
[352737075,1739283081640,-500.0,0.00011643,2]
[352737076,1739283081649,-662.81,0.00011643,2]
[352737077,1739283081659,-541.66,0.00011643,2]
[352737078,1739283081670,-722.67,0.00011643,2]
[352737079,1739283081679,-500.0,0.00011643,2]
[352737080,1739283081689,-500.0,0.00011643,2]
[352737081,1739283081698,-500.0,0.00011643,2]
[352737082,1739283081708,-500.0,0.00011643,2]
[352737083,1739283081718,-500.0,0.00011643,2]
[352737084,1739283081728,-1030.45,0.00011643,2]
[352737085,1739283081737,-500.0,0.00011643,2]
[352737086,1739283081747,-500.0,0.00011643,2]
[352737087,1739283081756,-835.87,0.00011643,2]
[352737088,1739283081766,-750.85,0.00011643,2]
[352737089,1739283081776,-500.0,0.00011643,2]
[352737090,1739283081785,-500.0,0.00011643,2]
[352737091,1739283081794,-500.0,0.00011643,2]
[352737092,1739283081805,-500.0,0.00011643,2]
[352737093,1739283081814,-500.0,0.00011643,2]
[352737094,1739283081823,-500.0,0.00011643,2]
[352737095,1739283081833,-500.0,0.00011643,2]
[352737096,1739283081843,-500.0,0.00011643,2]
[352737097,1739283081852,-500.0,0.00011643,2]
[352737098,1739283081862,-500.0,0.00011643,2]
[352737099,1739283081871,-500.0,0.00011643,2]
[352737100,1739283081881,-500.0,0.00011643,2]
[352737101,1739283081890,-500.0,0.00011643,2]
[352737102,1739283081899,-1038.04,0.00011643,2]
[352737103,1739283081909,-655.85,0.00011643,2]
[352737104,1739283081919,-553.69633815,0.00011643,2]
[352737105,1739283081929,-500.0,0.00011643,2]
[352737106,1739283081939,-626.7,0.00011643,2]
[352737107,1739283081948,-500.0,0.00011643,2]
[352737108,1739283081958,-500.0,0.00011643,2]
[352737109,1739283081967,-581.18,0.00011643,2]
[352737110,1739283081976,-650.34,0.00011643,2]
[352737111,1739283081986,-500.0,0.00011643,2]
[352737112,1739283081996,-500.0,0.00011643,2]
[352737113,1739283082006,-557.62,0.00011643,2]
[352737114,1739283082016,-500.0,0.00011643,2]
[352737115,1739283082026,-1181.79,0.00011643,2]
[352737116,1739283082036,-552.27,0.00011643,2]
[352737117,1739283082046,-982.11,0.00011643,2]
[352737118,1739283082058,-637.32,0.00011643,2]
[352737119,1739283082067,-500.0,0.00011643,2]
[352737120,1739283082076,-500.0,0.00011643,2]
[352737121,1739283082086,-500.0,0.00011643,2]
[352737122,1739283082096,-268.03021339,0.00011643,2]
[352737123,1739283082105,-621.63,0.00011643,2]
[352737124,1739283082115,-720.74,0.00011643,2]
[352737125,1739283082125,-500.0,0.00011643,2]
[352737126,1739283082135,-756.12,0.00011643,2]
[352737127,1739283082145,-500.0,0.00011643,2]
[352737128,1739283082155,-500.0,0.00011643,2]
[352737129,1739283082165,-540.21,0.00011643,2]
[352737130,1739283082175,-500.0,0.00011643,2]
[352737131,1739283082184,-500.0,0.00011643,2]
[352737132,1739283082194,-500.0,0.00011643,2]
[352737133,1739283082205,-1099.61,0.00011643,2]
[352737134,1739283082215,-543.05,0.00011643,2]
[352737135,1739283082224,-735.96,0.00011643,2]
[352737136,1739283082234,-1136.7,0.00011643,2]
[352737137,1739283082244,-500.0,0.00011643,2]
[352737138,1739283082253,-500.0,0.00011643,2]
[352737139,1739283082263,-500.0,0.00011643,2]
[352737140,1739283082272,-500.0,0.00011643,2]
[352737141,1739283082281,-875.16,0.00011643,2]
[352737142,1739283082291,-508.50605859,0.00011643,2]
[352737143,1739283082302,-580.72,0.00011643,2]
[352737144,1739283082311,-500.0,0.00011643,2]
[352737145,1739283082320,-560.28246106,0.00011643,2]
[352737146,1739283082330,-500.0,0.00011643,2]
[352737147,1739283082340,-1187.47,0.00011643,2]
[352737148,1739283082351,-1053.93,0.00011643,2]
[352737149,1739283082361,-635.88,0.00011643,2]
[352737150,1739283082371,-1017.56,0.00011643,2]
[352737151,1739283082381,-683.09,0.00011643,2]
[352737152,1739283082390,-1174.81,0.00011643,2]
[352737153,1739283082400,-500.0,0.00011643,2]
[352737154,1739283082409,-500.0,0.00011643,2]
[352737155,1739283082419,-500.0,0.00011643,2]
[352737156,1739283082429,-641.21,0.00011643,2]
[352737157,1739283082438,-515.4,0.00011643,2]
[352737158,1739283082448,-811.4,0.00011643,2]
[352737159,1739283082457,-500.0,0.00011643,2]
[352737160,1739283082467,-507.12716445,0.00011643,2]
[352737161,1739283082477,-2279.79,0.00011643,2]
[352737162,1739283082487,-500.0,0.00011643,2]
[352737163,1739283082497,-500.0,0.00011643,2]
[352737164,1739283082507,-500.0,0.00011643,2]
[352737165,1739283082516,-1026.36,0.00011643,2]
[352737166,1739283082526,-500.0,0.00011643,2]
[352737167,1739283082536,-500.0,0.00011643,2]
[352737168,1739283082545,-544.63,0.00011643,2]
[352737169,1739283082556,-1181.86,0.00011643,2]
[352737170,1739283082565,-500.0,0.00011643,2]
[352737171,1739283082575,-500.0,0.00011643,2]
[352737172,1739283082584,-678.67,0.00011643,2]
[352737173,1739283082594,-500.0,0.00011643,2]
[352737174,1739283082605,-521.28698494,0.00011643,2]
[352737175,1739283082615,-500.0,0.00011643,2]
[352737176,1739283082628,-1235.55,0.00011643,2]
[352737177,1739283082638,-2015.94,0.00011643,2]
[352737178,1739283082647,-500.0,0.00011643,2]
[352737179,1739283082656,-500.0,0.00011643,2]
[352737180,1739283082667,-638.72,0.00011643,2]
[352737181,1739283082676,-500.0,0.00011643,2]
[352737182,1739283082685,-572.24,0.00011643,2]
[352737183,1739283082695,-500.0,0.00011643,2]
[352737184,1739283082705,-884.07,0.00011643,2]
[352737185,1739283082715,-1344.05,0.00011643,2]
[352737186,1739283082724,-500.0,0.00011643,2]
[352737187,1739283082734,-500.0,0.00011643,2]
[352737188,1739283082744,-1667.76,0.00011643,2]
[352737189,1739283082753,-500.0,0.00011643,2]
[352737190,1739283082763,-515.7,0.00011643,2]
[352737191,1739283082772,-522.2,0.00011643,2]
[352737192,1739283082782,-500.0,0.00011643,2]
[352737193,1739283082791,-1113.72,0.00011643,2]
[352737194,1739283082802,-500.0,0.00011643,2]
[352737195,1739283082811,-757.59,0.00011643,2]
[352737196,1739283082821,-1179.03,0.00011643,2]
[352737197,1739283082831,-808.33,0.00011643,2]
[352737198,1739283082841,-1282.85,0.00011643,2]
[352737199,1739283082850,-500.0,0.00011643,2]
[352737200,1739283082859,-1795.37,0.00011643,2]
[352737201,1739283082869,-1850.76,0.00011643,2]
[352737202,1739283082878,-603.62,0.00011643,2]
[352737203,1739283082887,-500.0,0.00011643,2]
[352737204,1739283082896,-609.52745862,0.00011643,2]
[352737205,1739283082906,-500.0,0.00011643,2]
[352737206,1739283082916,-1151.05,0.00011643,2]
[352737207,1739283082926,-1119.24,0.00011643,2]
[352737208,1739283082935,-500.0,0.00011643,2]
[352737209,1739283082945,-1347.78,0.00011643,2]
[352737210,1739283082956,-819.33,0.00011643,2]
[352737211,1739283082965,-1536.44,0.00011643,2]
[352737212,1739283082975,-892.03,0.00011643,2]
[352737213,1739283082985,-500.0,0.00011643,2]
[352737214,1739283082995,-2017.38,0.00011643,2]
[352737215,1739283083005,-948.75,0.00011643,2]
[352737216,1739283083014,-526.05,0.00011643,2]
[352737217,1739283083024,-582.46,0.00011643,2]
[352737218,1739283083033,-683.75,0.00011643,2]
[352737219,1739283083043,-657.71,0.00011643,2]
[352737220,1739283083053,-640.93,0.00011643,2]
[352737221,1739283083063,-2105.16,0.00011643,2]
[352737222,1739283083072,-1725.88,0.00011643,2]
[352737223,1739283083082,-500.0,0.00011643,2]
[352737224,1739283083091,-500.0,0.00011643,2]
[352737225,1739283083100,-634.23,0.00011643,2]
[352737226,1739283083226,-1375.79,0.00011643,2]
[352737227,1739283083246,-500.0,0.00011643,2]
[352737228,1739283083256,-582.27,0.00011643,2]
[352737229,1739283083266,-1848.33,0.00011643,2]
[352737230,1739283083276,-500.0,0.00011643,2]
[352737231,1739283083285,-853.65,0.00011643,2]
[352737232,1739283083295,-500.0,0.00011643,2]
[352737233,1739283083307,-1602.84,0.00011643,2]
[352737234,1739283083317,-1126.45,0.00011643,2]
[352737235,1739283083326,-500.0,0.00011643,2]
[352737236,1739283083336,-1623.28,0.00011643,2]
[352737237,1739283083345,-1955.0,0.00011643,2]
[352737238,1739283083355,-1095.96,0.00011643,2]
[352737239,1739283083364,-1427.46,0.00011643,2]
[352737240,1739283083374,-733.7,0.00011643,2]
[352737241,1739283083383,-500.0,0.00011643,2]
[352737242,1739283083393,-507.93,0.00011643,2]
[352737243,1739283083403,-1892.51,0.00011643,2]
[352737244,1739283083413,-636.24,0.00011643,2]
[352737245,1739283083422,-500.0,0.00011643,2]
[352737246,1739283083432,-1207.29,0.00011643,2]
[352737247,1739283083442,-1791.03,0.00011643,2]
[352737248,1739283083451,-1757.72,0.00011643,2]
[352737249,1739283083461,-500.0,0.00011643,2]
[352737250,1739283083471,-1102.03,0.00011643,2]
[352737251,1739283083481,-500.0,0.00011643,2]
[352737252,1739283083491,-151.0,0.00011643,2]
[352737253,1739283083500,-2171.34,0.00011643,2]
[352737254,1739283083509,-713.64,0.00011643,2]
[352737255,1739283083519,-500.0,0.00011643,2]
[352737256,1739283083528,-4488.97,0.00011643,2]
[352737257,1739283083538,-1078.79,0.00011643,2]
[352737258,1739283083548,-1189.98,0.00011643,2]
[352737259,1739283083559,-2231.76,0.00011643,2]
[352737260,1739283083569,-3213.91,0.00011643,2]
[352737261,1739283083578,-1985.57,0.00011643,2]
[352737262,1739283083587,-500.0,0.00011643,2]
[352737263,1739283083597,-500.0,0.00011643,2]
[352737264,1739283083607,-2233.07,0.00011643,2]
[352737265,1739283083618,-2042.81,0.00011643,2]
[352737266,1739283083629,-500.0,0.00011643,2]
[352737267,1739283083639,-1475.61,0.00011643,2]
[352737268,1739283083649,-500.0,0.00011643,2]
[352737269,1739283083659,-810.69,0.00011643,2]
[352737270,1739283083671,-500.0,0.00011643,2]
[352737271,1739283083685,-2371.13,0.00011643,2]
[352737272,1739283083694,-500.0,0.00011643,2]
[352737273,1739283083703,-700.09,0.00011643,2]
[352737274,1739283083713,-1214.76,0.00011643,2]
[352737275,1739283083722,-2171.63,0.00011643,2]
[352737276,1739283083732,-2387.02,0.00011643,2]
[352737277,1739283083742,-620.08,0.00011643,2]
[352737278,1739283083753,-2310.94,0.00011643,2]
[352737279,1739283083763,-2340.95,0.00011643,2]
[352737280,1739283083772,-500.0,0.00011643,2]
[352737281,1739283083782,-1886.51,0.00011643,2]
[352737282,1739283083792,-5444.75,0.00011643,2]
[352737283,1739283083803,-2886.17,0.00011643,2]
[352737284,1739283083813,-500.0,0.00011643,2]
[352737285,1739283083822,-727.8,0.00011643,2]
[352737286,1739283083832,-707.04,0.00011643,2]
[352737287,1739283083842,-2343.44,0.00011643,2]
[352737288,1739283083851,-500.0,0.00011643,2]
[352737289,1739283083861,-163.11549052,0.00011643,2]
[352737290,1739283083871,-937.33,0.00011643,2]
[352737291,1739283083881,-1158.26,0.00011643,2]
[352737292,1739283083891,-500.0,0.00011643,2]
[352737293,1739283083901,-670.35,0.00011643,2]
[352737294,1739283083911,-500.0,0.00011643,2]
[352737295,1739283083920,-2558.39,0.00011643,2]
[352737296,1739283083930,-620.78,0.00011643,2]
[352737297,1739283083940,-2007.68,0.00011643,2]
[352737298,1739283083950,-2648.76,0.00011643,2]
[352737299,1739283083960,-2171.75,0.00011643,2]
[352737300,1739283083970,-2434.45,0.00011643,2]
[352737301,1739283083980,-731.57,0.00011643,2]
[352737302,1739283083990,-2583.49,0.00011643,2]
[352737303,1739283084000,-2031.5,0.00011643,2]
[352737304,1739283084011,-626.92285429,0.00011643,2]
[352737305,1739283084021,-151.0,0.00011643,2]
[352737306,1739283084031,-3062.38,0.00011643,2]
[352737307,1739283084041,-500.0,0.00011643,2]
[352737308,1739283084051,-1845.16,0.00011643,2]
[352737309,1739283084062,-3061.99,0.00011643,2]
[352737310,1739283084072,-2068.15,0.00011643,2]
[352737311,1739283084082,-151.0,0.00011643,2]
[352737312,1739283084092,-1009.34,0.00011643,2]
[352737313,1739283084101,-2900.54,0.00011643,2]
[352737314,1739283084111,-500.0,0.00011643,2]
[352737315,1739283084121,-2626.43,0.00011643,2]
[352737316,1739283084131,-500.0,0.00011643,2]
[352737317,1739283084141,-2213.47,0.00011643,2]
[352737318,1739283084150,-463.65422388,0.00011643,2]
[352737319,1739283084160,-1085.29,0.00011643,2]
[352737320,1739283084176,-2309.34,0.00011643,2]
[352737321,1739283084195,-7282.99,0.00011643,2]
[352737322,1739283084214,-1952.41,0.00011643,2]
[352737323,1739283084234,-701.48,0.00011643,2]
[352737324,1739283084249,-1931.94,0.00011643,2]
[352737325,1739283084268,-500.0,0.00011643,2]
[352737326,1739283084287,-500.0,0.00011643,2]
[352737327,1739283084307,-5326.26,0.00011643,2]
[352737328,1739283084325,-500.0,0.00011643,2]
[352737329,1739283084344,-3327.15,0.00011643,2]
[352737330,1739283084360,-1259.82,0.00011643,2]
[352737331,1739283084376,-500.0,0.00011643,2]
[352737332,1739283084392,-667.96,0.00011643,2]
[352737333,1739283084408,-500.0,0.00011643,2]
[352737334,1739283084422,-3450.17,0.00011643,2]
[352737335,1739283084437,-500.0,0.00011643,2]
[352737336,1739283084452,-1704.66,0.00011643,2]
[352737337,1739283084467,-500.0,0.00011643,2]
[352737338,1739283084482,-500.0,0.00011643,2]
[352737339,1739283084497,-2127.38,0.00011643,2]
[352737340,1739283084512,-500.0,0.00011643,2]
[352737341,1739283084527,-500.0,0.00011643,2]
[352737342,1739283084542,-1476.79,0.00011643,2]
[352737343,1739283084557,-1839.16,0.00011643,2]
[352737344,1739283084572,-889.84,0.00011643,2]
[352737345,1739283084588,-2565.16,0.00011643,2]
[352737346,1739283084601,-2467.78,0.00011643,2]
[352737347,1739283084616,-500.0,0.00011643,2]
[352737348,1739283084635,-1657.8,0.00011643,2]
[352737349,1739283084650,-683.49,0.00011643,2]
[352737350,1739283084667,-500.0,0.00011643,2]
[352737351,1739283084683,-500.0,0.00011643,2]
[352737352,1739283084699,-1036.17,0.00011643,2]
[352737353,1739283084713,-2953.99,0.00011643,2]
[352737354,1739283084729,-500.0,0.00011643,2]
[352737355,1739283084744,-2380.39,0.00011643,2]
[352737356,1739283084759,-1433.77,0.00011643,2]
[352737357,1739283084774,-1071.62,0.00011643,2]
[352737358,1739283084789,-1274.15,0.00011643,2]
[352737359,1739283084805,-500.0,0.00011643,2]
[352737360,1739283084820,-855.01,0.00011643,2]
[352737361,1739283084836,-1027.27,0.00011643,2]
[352737362,1739283084851,-1213.71,0.00011643,2]
[352737363,1739283084866,-500.0,0.00011643,2]
[352737364,1739283084882,-2875.82,0.00011643,2]
[352737365,1739283084898,-727.11,0.00011643,2]
[352737366,1739283084913,-500.0,0.00011643,2]
[352737367,1739283084929,-713.14,0.00011643,2]
[352737368,1739283084945,-1743.04,0.00011643,2]
[352737369,1739283084961,-2037.92,0.00011643,2]
[352737370,1739283084977,-2384.33,0.00011643,2]
[352737371,1739283084992,-1210.9,0.00011643,2]
[352737372,1739283085007,-3335.18,0.00011643,2]
[352737373,1739283085022,-641.1091071,0.0001166,2]
[352737374,1739283085038,-1366.0,0.0001167,2]
[352737375,1739283085054,-2389.45472724,0.00011673,2]
[352737376,1739283085070,-1366.0,0.00011698,2]
[352737377,1739283085086,-754.87574914,0.0001171,2]
[352737378,1739283085101,-150.0,0.0001172,2]
[352737379,1739283085120,-1366.0,0.00011725,2]
[352737380,1739283085137,-150.0,0.00011743,2]
[352737381,1739283085153,-507.794811,0.00011752,2]
[352737382,1739283085170,-169.264937,0.00011752,2]
[352737383,1739283085186,-1366.0,0.00011753,2]
[352737384,1739283085202,-28808.0,0.00011753,2]
[352737385,1739283085217,-1077.36729892,0.0001176,2]
[352737386,1739283085232,-1118.14157827,0.0001176,2]
[352737387,1739283085248,-150.0,0.00011765,2]
[352737388,1739283085264,-3250.076618,0.00011766,2]
[352737389,1739283085280,-350.6188865,0.00011766,2]
[352737390,1739283085296,-4948.5091115,0.00011771,2]
[352737391,1739283085311,-4948.5091115,0.00011771,2]
[352737392,1739283085327,-4948.5091115,0.00011771,2]
[352737393,1739283085342,-1753.0944328,0.00011771,2]
[352737394,1739283085357,-1753.0944328,0.00011771,2]
[352737395,1739283085372,-1753.0944328,0.00011771,2]
[352737396,1739283085386,-151.0,0.00011772,2]
[352737397,1739283085401,-4948.5091115,0.00011772,2]
[352737398,1739283085416,-1753.0944328,0.00011772,2]
[352737399,1739283085431,-2214.2608784,0.00011772,2]
[352737400,1739283085447,-599.4135733,0.00011772,2]
[352737401,1739283085462,-623.7407264,0.00011772,2]
[352737402,1739283085478,-600.5947323,0.00011772,2]
[352737403,1739283085494,-503.0619252,0.00011773,2]
[352737404,1739283085511,-524.64,0.00011773,2]
[352737405,1739283085527,-1114.15,0.00011774,2]
[352737406,1739283085541,-1907.79,0.00011774,2]
[352737407,1739283085557,-500.0,0.00011774,2]
[352737408,1739283085572,-2042.7,0.00011774,2]
[352737409,1739283085587,-2608.79,0.00011774,2]
[352737410,1739283085789,-580.14,0.00011778,2]
[352737411,1739283085808,-151.0,0.00011779,2]
[352737412,1739283085818,-1366.0,0.0001178,2]
[352737413,1739283085828,-151.0,0.0001178,2]
[352737414,1739283085837,-500.0,0.0001178,2]